bitfinex/quotes_SOLUSD_20220218
["timestamp","ask_amount","ask_price","bid_price","bid_amount"]
[1645208741200,6.0,90.0,89.94,16.677]
[1645208742802,5.557,89.999,89.94,16.677]
[1645208743400,6.0,90.0,89.94,16.677]
[1645208743599,5.557,89.999,89.94,16.677]
[1645208743799,6.0,90.0,89.94,16.677]
[1645208744399,5.557,89.999,89.94,16.677]
[1645208748205,6.0,89.998,89.94,16.677]
[1645208748406,5.557,89.997,89.94,16.677]
[1645208749406,38.8186883,90.001,89.94,16.677]
[1645208750213,38.8186883,90.001,89.941,111.6]
[1645208750407,38.8186883,90.001,89.95,16.6757]
[1645208751112,38.8186883,90.001,89.95,32.6957]
[1645208751712,23.5341,90.02,89.951,114.2293831]
[1645208751913,6.0,90.018,89.951,114.2293831]
[1645208752117,6.0,90.018,89.97,16.6728]
[1645208752318,23.5341,90.02,89.97,16.6728]
[1645208752525,23.5341,90.02,89.971,2.6293831]
[1645208752716,111.6,90.058,89.971,2.6293831]
[1645208752717,37.36636766,90.018,89.971,2.6293831]
[1645208752914,37.36636766,90.018,89.96,16.02]
[1645208753315,37.36636766,90.018,89.98,16.6722]
[1645208753715,6.0,90.017,89.98,16.6722]
[1645208755017,6.0,90.017,89.954,2.6293831]
[1645208755224,5.556,90.016,89.95,71.6052]
[1645208755618,37.36636766,90.018,89.95,71.6052]
[1645208756220,37.36636766,90.018,89.96,16.6781]
[1645208757824,5.556,90.017,89.96,16.6781]
[1645208758221,37.36636766,90.018,89.96,16.6781]
[1645208759023,0.7623161,90.016,89.96,16.6781]
[1645208764026,112.3623161,90.016,89.96,16.6781]
[1645208764228,112.3623161,90.016,89.95,16.6804]
[1645208764426,110.6,90.009,89.91,55.6072]
[1645208764626,110.6,90.007,89.911,5.557]
[1645208764825,116.158,90.006,89.911,5.557]
[1645208765024,110.6,90.006,89.911,5.557]
[1645208765225,6.0,90.005,89.911,5.557]
[1645208765428,37.13991619,90.004,89.94,16.6818]
[1645208766027,37.13991619,90.004,89.94,19.3111831]
[1645208766426,37.13991619,90.004,89.94,35.3311831]
[1645208767026,37.13991619,90.004,89.94,32.7018]
[1645208768831,37.13991619,90.004,89.941,111.6]
[1645208769031,37.13991619,90.004,89.951,111.6]
[1645208770337,46.9554,90.015,89.96,16.6742]
[1645208770532,3.04858809,90.039,89.96,16.6742]
[1645208770734,3.04858809,90.044,89.961,114.2293831]
[1645208771134,3.04858809,90.045,89.962,2.6293831]
[1645208771336,37.10263989,90.043,89.962,2.6293831]
[1645208771533,12.30012928,90.042,89.962,2.6293831]
[1645208771734,6.30012928,90.041,89.962,2.6293831]
[1645208771933,1.54146993,90.022,89.962,2.6293831]
[1645208772134,37.88521149,90.021,89.962,2.6293831]
[1645208772335,36.34374156,90.021,89.98,16.6725]
[1645208773136,35.34374156,90.021,89.98,16.6725]
[1645208774144,1.54146993,90.023,89.98,16.6725]
[1645208774342,1.54146993,90.032,89.981,2.6293831]
[1645208774559,1.54146993,90.037,89.99,16.6682]
[1645208774762,1.54146993,90.043,89.99,32.6882]
[1645208774961,1.54146993,90.043,89.991,2.6293831]
[1645208775163,43.07548962,90.042,89.991,2.6293831]
[1645208775564,1.54146993,90.041,89.99,16.02]
[1645208775765,1.54146993,90.041,90.0,16.6665]
[1645208776158,1.54146993,90.036,90.0,16.6665]
[1645208776561,1.54146993,90.034,90.0,16.6665]
[1645208776758,1.54146993,90.035,89.982,24.839]
[1645208776963,1.54146993,90.035,89.99,16.6731]
[1645208777366,1.54146993,90.031,89.99,16.6731]
[1645208777562,30.1485572,90.027,89.99,16.6731]
[1645208777761,31.69002713,90.027,89.99,16.6731]
[1645208777961,1.54146993,90.026,89.99,16.6731]
[1645208778162,1.54146993,90.025,89.99,16.6731]
[1645208778661,1.54146993,90.031,89.99,16.6731]
[1645208779262,1.54146993,90.035,89.991,2.6293831]
[1645208779463,1.54146993,90.035,90.0,16.6678]
[1645208779761,23.1676,90.047,90.0,16.6678]
[1645208779762,1.54146993,90.043,90.0,16.6678]
[1645208780361,30.6662083,90.043,90.0,16.6678]
[1645208780562,32.20767823,90.043,90.0,16.6678]
[1645208781163,30.6662083,90.043,90.0,16.6678]
[1645208781362,6.0,90.042,90.0,16.6678]
[1645208782762,1.54146993,90.039,90.0,16.6678]
[1645208782963,30.6662083,90.043,90.0,16.6678]
[1645208783362,1.54146993,90.039,90.0,16.6678]
[1645208783564,1.54146993,90.038,89.99,16.672]
[1645208783763,1.54146993,90.033,89.99,16.672]
[1645208784463,1.54146993,90.034,89.98,5.554]
[1645208784664,30.6662083,90.043,89.98,5.554]
[1645208784665,1.54146993,90.029,89.98,5.554]
[1645208784864,34.57365734,90.028,89.95,55.5819]
[1645208785063,1.54146993,90.026,89.95,55.5819]
[1645208785264,1.54146993,90.025,89.96,16.02]
[1645208785468,1.54146993,90.025,89.961,111.6]
[1645208785666,1.54146993,90.045,89.961,111.6]
[1645208785865,1.54146993,90.044,89.963,111.6]
[1645208786062,1.54146993,90.044,89.964,0.25]
[1645208786564,1.54146993,90.045,89.981,111.6]
[1645208786768,6.0,90.044,89.991,111.6]
[1645208786968,1.54146993,90.053,90.0,16.02]
[1645208787164,1.54146993,90.052,90.001,111.6]
[1645208787366,1.54146993,90.052,90.002,5.553]
[1645208787565,1.54146993,90.065,90.002,5.553]
[1645208787764,1.54146993,90.068,90.003,2.6293831]
[1645208787966,1.54146993,90.068,90.004,5.553]
[1645208788265,39.54851999,90.067,90.004,117.153]
[1645208788465,6.0,90.066,90.011,111.6]
[1645208788664,6.0,90.066,90.02,16.02]
[1645208789064,0.76451899,90.032,90.021,2.6293831]
[1645208791368,0.76451899,90.032,90.022,0.58219996]
[1645208793171,0.76451899,90.032,90.023,2.6293831]
[1645208793571,3.04858809,90.1,90.023,2.6293831]
[1645208793572,1.54146993,90.079,90.041,111.6]
[1645208793777,78.1093,90.127,90.041,111.6]
[1645208793778,1.54146993,90.087,90.041,111.6]
[1645208793970,1.54146993,90.09,90.05,16.02]
[1645208794171,1.54146993,90.095,90.05,16.02]
[1645208794380,1.54146993,90.095,90.051,2.6293831]
[1645208794574,1.54146993,90.095,90.06,16.6572]
[1645208794976,1.54146993,90.095,90.061,2.6293831]
[1645208795174,1.54146993,90.098,90.06,16.6572]
[1645208795473,1.54146993,90.096,90.06,16.6572]
[1645208795675,1.54146993,90.096,90.061,2.6293831]
[1645208795873,34.62328001,90.101,90.07,16.6541]
[1645208796075,6.0,90.1,90.07,16.6541]
[1645208796879,6.0,90.1,90.06,16.6575]
[1645208798278,6.0,90.1,90.05,32.6792]
[1645208798679,1.54146993,90.099,90.05,32.6792]
[1645208799780,1.54146993,90.098,90.05,32.6792]
[1645208800181,1.54146993,90.099,90.05,32.6792]
[1645208800888,34.62328001,90.101,90.06,16.6573]
[1645208801084,34.62328001,90.101,90.06,32.6773]
[1645208802485,6.0,90.1,90.06,32.6773]
[1645208803086,6.0,90.1,90.06,16.02]
[1645208803288,1.54146993,90.099,90.05,16.6595]
[1645208803488,1.54146993,90.096,90.05,16.6595]
[1645208803689,1.54146993,90.098,90.05,16.6595]
[1645208804289,1.54146993,90.097,90.05,16.6595]
[1645208804491,1.54146993,90.098,90.05,16.6595]
[1645208804988,1.54146993,90.097,90.05,16.6595]
[1645208805389,1.54146993,90.096,90.05,16.6595]
[1645208805790,1.54146993,90.099,90.05,16.6595]
[1645208805991,34.62328001,90.101,90.06,16.02]
[1645208805992,1.54146993,90.1,90.06,16.02]
[1645208806192,6.0,90.099,90.06,16.02]
[1645208806392,6.0,90.099,90.07,16.6552]
[1645208806593,34.62328001,90.101,90.07,16.6552]
[1645208806791,6.0,90.1,90.07,32.6752]
[1645208808205,6.0,90.099,90.07,32.6752]
[1645208808411,1.54146993,90.12,90.07,32.6752]
[1645208808611,6.0,90.119,90.07,32.6752]
[1645208808807,6.0,90.118,90.07,32.6752]
[1645208809008,36.79369522,90.117,90.07,32.6752]
[1645208809207,6.0,90.116,90.07,32.6752]
[1645208809510,5.549,90.131,90.071,114.2293831]
[1645208809707,55.515,90.21,90.071,114.2293831]
[1645208809708,1.54146993,90.143,90.081,111.6]
[1645208809907,1.54146993,90.151,90.09,16.02]
[1645208810110,1.54146993,90.153,90.091,111.6]
[1645208810507,36.64417708,90.152,90.091,114.2293831]
[1645208810709,36.64417708,90.152,90.092,138.214864]
[1645208811109,36.64417708,90.152,90.093,26.614864]
[1645208811310,24.4014,90.165,90.101,111.6]
[1645208811511,5.0,90.25,90.11,16.02]
[1645208811512,1.54146993,90.187,90.11,16.02]
[1645208811712,1.54146993,90.192,90.111,117.85]
[1645208811912,1.54146993,90.206,90.121,111.6]
[1645208812113,1.54146993,90.213,90.131,111.6]
[1645208812312,24.0099,90.249,90.131,111.6]
[1645208812313,30.97077473,90.212,90.141,111.6]
[1645208812513,30.97077473,90.212,90.161,111.6]
[1645208812712,30.97077473,90.212,90.15,255.7555]
[1645208812713,30.97077473,90.212,90.171,111.6]
[1645208813013,30.97077473,90.212,90.18,16.02]
[1645208813513,6.0,90.211,90.18,16.02]
[1645208814315,5.45200198,90.211,90.18,32.6534]
[1645208816318,5.45200198,90.211,90.18,32.6734]
[1645208819524,0.67133225,90.21,90.18,32.6734]
[1645208820927,0.67133225,90.21,90.17,16.04]
[1645208821130,0.67133225,90.21,90.162,2.6293831]
[1645208821335,5.543,90.209,90.14,16.02]
[1645208821529,5.543,90.209,90.133,2.6293831]
[1645208822229,6.21633225,90.21,90.133,2.6293831]
[1645208822430,0.67133225,90.21,90.15,16.6429]
[1645208823428,0.67133225,90.21,90.15,32.6629]
[1645208823631,5.543,90.209,90.15,32.6629]
[1645208824332,111.6,90.208,90.15,32.6629]
[1645208824529,111.6,90.206,90.15,32.6629]
[1645208824734,111.6,90.204,90.15,32.6629]
[1645208824931,5.543,90.203,90.15,32.6629]
[1645208825231,6.0,90.202,90.15,32.6629]
[1645208825432,5.543,90.201,90.15,32.6629]
[1645208826233,5.543,90.201,90.15,16.6429]
[1645208828939,5.543,90.208,90.15,16.6429]
[1645208829138,6.0,90.207,90.15,16.6429]
[1645208829339,5.543,90.206,90.15,16.6429]
[1645208831340,111.6,90.205,90.15,16.6429]
[1645208831539,6.0,90.207,90.15,16.6429]
[1645208831540,5.543,90.204,90.15,16.6429]
[1645208831740,5.543,90.206,90.15,16.6429]
[1645208832140,5.543,90.206,90.13,71.4981]
[1645208832341,111.6,90.205,90.09,16.02]
[1645208832644,111.6,90.197,90.09,16.02]
[1645208832840,111.6,90.195,90.09,16.02]
[1645208833040,111.6,90.193,90.09,16.02]
[1645208833242,111.6,90.191,90.09,16.02]
[1645208833442,111.6,90.189,90.12,16.6499]
[1645208833640,111.6,90.187,90.12,16.6499]
[1645208833840,16.6504,90.18,90.12,16.6499]
[1645208834043,44.2699878,90.178,90.12,16.6499]
[1645208834240,5.546,90.177,90.12,16.6499]
[1645208835759,6.0,90.176,90.12,16.6499]
[1645208836161,5.546,90.175,90.12,16.6499]
[1645208836358,5.546,90.177,90.12,16.6499]
[1645208836562,6.0,90.176,90.12,16.6499]
[1645208836758,5.546,90.175,90.12,16.6499]
[1645208837360,5.546,90.177,90.12,16.6499]
[1645208838460,1.54146993,90.176,90.11,16.6518]
[1645208838660,61.1969878,90.178,90.11,16.6518]
[1645208838661,7.08746993,90.175,90.11,16.6518]
[1645208838860,111.6,90.174,90.11,16.6518]
[1645208839061,5.546,90.173,90.11,16.6518]
[1645208839460,6.0,90.172,90.11,16.6518]
[1645208839661,5.546,90.171,90.11,16.6518]
[1645208840472,111.6,90.17,90.11,16.6518]
[1645208840664,113.14146993,90.168,90.1,16.6539]
[1645208840862,1.54146993,90.162,90.1,16.6539]
[1645208841064,111.6,90.16,90.067,22.8811]
[1645208841264,113.14146993,90.158,90.067,22.8811]
[1645208841465,111.6,90.156,90.067,22.8811]
[1645208841661,111.6,90.154,90.067,22.8811]
[1645208841863,111.6,90.152,90.067,22.8811]
[1645208842064,111.6,90.15,90.067,22.8811]
[1645208842364,113.14146993,90.148,90.08,16.6562]
[1645208842564,111.6,90.146,90.08,16.6562]
[1645208842765,111.6,90.144,90.08,16.6562]
[1645208842966,48.9779,90.161,90.08,16.6562]
[1645208842967,159.4036694,90.142,90.08,16.6562]
[1645208843166,111.6,90.14,90.08,16.6562]
[1645208843366,5.548,90.139,90.08,16.6562]
[1645208843766,47.8036694,90.142,90.081,111.6]
[1645208843967,1.54146993,90.167,90.082,117.6]
[1645208844267,1.54146993,90.18,90.1,16.6497]
[1645208844468,1.54146993,90.183,90.1,16.6497]
[1645208844768,5.546,90.182,90.101,2.6293831]
[1645208844968,39.82324759,90.181,90.101,69.56285409]
[1645208845170,11.546,90.18,90.101,69.56285409]
[1645208845368,13.08746993,90.18,90.101,69.56285409]
[1645208845573,34.3884,90.18,90.101,69.56285409]
[1645208846369,34.3884,90.18,90.12,16.6484]
[1645208846574,1.54146993,90.179,90.12,16.6484]
[1645208846971,1.54146993,90.176,90.12,16.6484]
[1645208847173,5.546,90.175,90.12,16.6484]
[1645208847373,1.54146993,90.172,90.12,16.6484]
[1645208847573,5.546,90.171,90.12,16.6484]
[1645208847775,1.54146993,90.174,90.12,16.6484]
[1645208847974,1.54146993,90.175,90.12,16.6484]
[1645208848374,1.54146993,90.172,90.12,16.6484]
[1645208848575,1.54146993,90.169,90.12,16.6484]
[1645208849174,1.54146993,90.168,90.12,16.6484]
[1645208849474,1.54146993,90.165,90.12,16.6484]
[1645208850375,6.0,90.164,90.12,16.6484]
[1645208850579,7.54146993,90.164,90.12,16.6484]
[1645208850779,6.0,90.164,90.12,16.6484]
[1645208850977,1.54146993,90.164,90.12,16.6484]
[1645208851179,6.0,90.163,90.12,16.6484]
[1645208851977,1.54146993,90.166,90.12,16.6484]
[1645208852178,6.0,90.165,90.12,16.6484]
[1645208852381,1.54146993,90.164,90.12,16.6484]
[1645208852579,1.54146993,90.163,90.12,16.6484]
[1645208852780,1.54146993,90.162,90.11,16.652]
[1645208852980,1.54146993,90.153,90.11,16.652]
[1645208853180,50.57587177,90.152,90.11,16.652]
[1645208853584,5.547,90.151,90.11,16.652]
[1645208853784,50.57587177,90.152,90.11,16.652]
[1645208854081,6.0,90.151,90.11,16.652]
[1645208859386,50.57587177,90.152,90.11,16.652]
[1645208860990,50.57587177,90.152,90.11,32.672]
[1645208861193,6.0,90.151,90.11,32.672]
[1645208861994,1.54146993,90.161,90.111,2.6293831]
[1645208862193,1.54146993,90.161,90.12,16.6439]
[1645208862392,1.54146993,90.168,90.12,32.6639]
[1645208862593,6.0,90.167,90.12,32.6639]
[1645208862893,60.45237387,90.166,90.121,53.8137387]
[1645208863592,60.45237387,90.166,90.13,16.6442]
[1645208864993,6.0,90.166,90.13,16.6442]
[1645208865192,1.54146993,90.172,90.13,16.6442]
[1645208865794,1.54146993,90.176,90.13,16.6442]
[1645208865995,53.90905321,90.175,90.13,16.6442]
[1645208866193,55.45052314,90.175,90.13,16.6442]
[1645208866396,1.54146993,90.174,90.13,16.6442]
[1645208867495,55.45052314,90.175,90.13,16.6442]
[1645208867695,53.90905321,90.175,90.13,16.6442]
[1645208868097,1.54146993,90.174,90.131,0.4732213]
[1645208868316,1.54146993,90.174,90.14,16.6452]
[1645208868714,6.0,90.173,90.14,16.6452]
[1645208868917,55.45052314,90.175,90.14,16.6452]
[1645208869114,6.0,90.174,90.14,16.6452]
[1645208869314,5.8,90.174,90.14,16.6452]
[1645208871316,5.8,90.174,90.141,0.4732213]
[1645208871518,5.8,90.174,90.15,16.6448]
[1645208874217,5.8,90.174,90.151,0.4732213]
[1645208877224,5.8,90.174,90.141,0.4732213]
[1645208877625,5.8,90.174,90.15,16.6446]
[1645208878624,5.8,90.174,90.141,0.4732213]
[1645208879024,1.54146993,90.173,90.141,0.4732213]
[1645208879727,1.54146993,90.166,90.141,0.4732213]
[1645208879925,1.54146993,90.161,90.141,0.4732213]
[1645208880125,1.54146993,90.154,90.141,2.13e-05]
[1645208880330,7.08746993,90.153,90.08,16.02]
[1645208880526,1.54146993,90.151,90.08,16.02]
[1645208880727,5.548,90.15,90.08,16.02]
[1645208881126,44.06641767,90.149,90.092,78.86242579]
[1645208881327,5.548,90.148,90.1,16.6534]
[1645208881527,44.06641767,90.149,90.1,16.6534]
[1645208881726,44.06641767,90.149,90.11,16.02]
[1645208881929,1.54146993,90.163,90.101,2.6293831]
[1645208882128,1.54146993,90.164,90.101,2.6293831]
[1645208882328,1.54146993,90.166,90.101,2.6293831]
[1645208882528,1.54146993,90.163,90.11,16.6466]
[1645208882729,6.0,90.162,90.11,16.6466]
[1645208882929,39.87326522,90.161,90.11,16.6466]
[1645208883530,41.41473515,90.161,90.11,16.6466]
[1645208884131,39.87326522,90.161,90.11,32.6666]
[1645208885934,39.87326522,90.161,90.111,43.74495968]
[1645208886132,39.87326522,90.161,90.12,16.6464]
[1645208886333,6.0,90.16,90.13,16.02]
[1645208886533,39.87326522,90.161,90.13,16.02]
[1645208886933,1.54146993,90.169,90.13,16.02]
[1645208887136,6.0,90.168,90.14,16.6467]
[1645208887434,1.54146993,90.171,90.14,16.6467]
[1645208887637,6.0,90.17,90.14,16.6467]
[1645208887835,7.54146993,90.17,90.14,16.6467]
[1645208888034,40.04153513,90.169,90.14,16.6467]
[1645208888235,7.54146993,90.17,90.14,16.6467]
[1645208888439,1.54146993,90.17,90.141,111.6]
[1645208888635,1.54146993,90.176,90.142,6.0]
[1645208888835,1.54146993,90.176,90.15,16.6397]
[1645208889034,1.54146993,90.191,90.16,16.02]
[1645208889235,1.54146993,90.192,90.161,45.32430122]
[1645208889436,54.72229331,90.191,90.161,45.32430122]
[1645208889639,54.72229331,90.191,90.16,16.02]
[1645208890439,54.72229331,90.191,90.17,16.6385]
[1645208890837,1.54146993,90.196,90.17,16.6385]
[1645208891038,1.54146993,90.195,90.17,16.6385]
[1645208891238,1.54146993,90.199,90.17,16.6385]
[1645208891442,1.54146993,90.2,90.17,16.6385]
[1645208891736,1.54146993,90.199,90.17,16.6385]
[1645208892337,1.54146993,90.198,90.17,16.6385]
[1645208892938,52.63099572,90.197,90.17,16.6385]
[1645208894141,52.63099572,90.197,90.17,32.6585]
[1645208894341,1.54146993,90.199,90.17,32.6585]
[1645208894744,1.54146993,90.2,90.17,32.6585]
[1645208894941,113.05146993,90.228,90.17,32.6585]
[1645208895142,6.0,90.227,90.17,32.6585]
[1645208895345,45.83379,90.225,90.17,32.6585]
[1645208896442,45.83379,90.225,90.171,2.6293831]
[1645208896644,45.83379,90.225,90.18,16.6351]
[1645208896843,45.83379,90.225,90.18,32.6551]
[1645208898043,6.0,90.226,90.18,32.6551]
[1645208898345,23.1469,90.238,90.181,8.6293831]
[1645208898545,6.0,90.237,90.19,16.6323]
[1645208898743,6.0,90.237,90.2,16.02]
[1645208899142,54.84110021,90.236,90.2,16.02]
[1645208899546,23.1469,90.238,90.2,16.02]
[1645208900453,39.45823052,90.237,90.21,16.631]
[1645208900646,39.45823052,90.237,90.21,32.651]
[1645208900845,38.45823052,90.237,90.21,32.651]
[1645208901044,5.541,90.269,90.21,32.651]
[1645208901247,5.541,90.269,90.211,111.6]
[1645208901546,5.54,90.296,90.22,16.6261]
[1645208901746,6.28339206,90.295,90.23,16.02]
[1645208901971,41.3623544,90.294,90.23,16.02]
[1645208902148,11.82239206,90.293,90.23,16.02]
[1645208902351,6.28339206,90.292,90.23,16.02]
[1645208902549,111.6,90.29,90.23,16.02]
[1645208902745,111.6,90.288,90.23,16.02]
[1645208902945,111.6,90.286,90.23,16.02]
[1645208903145,5.539,90.285,90.23,16.02]
[1645208903346,5.539,90.293,90.206,46.88348875]
[1645208903547,12.28416685,90.292,90.21,16.02]
[1645208903748,11.82416685,90.291,90.21,16.02]
[1645208903948,6.28416685,90.29,90.21,16.02]
[1645208904152,16.6313,90.28,90.21,16.02]
[1645208904349,28.1434,90.279,90.21,16.02]
[1645208904552,46.16999017,90.278,90.21,16.02]
[1645208904748,111.6,90.276,90.21,16.02]
[1645208904951,111.6,90.274,90.21,16.02]
[1645208905147,111.6,90.272,90.18,16.02]
[1645208905349,111.6,90.269,90.18,16.02]
[1645208905748,111.6,90.267,90.18,16.02]
[1645208905950,111.6,90.265,90.18,16.02]
[1645208906149,111.6,90.263,90.18,16.02]
[1645208906350,16.6381,90.25,90.18,16.02]
[1645208906551,84.11396022,90.249,90.18,16.02]
[1645208909253,6.0,90.248,90.18,16.02]
[1645208909485,16.6385,90.24,90.157,46.42824111]
[1645208909787,6.0,90.248,90.151,23.0507]
[1645208909788,5.543,90.239,90.151,23.0507]
[1645208909988,5.543,90.247,90.151,23.0507]
[1645208910183,6.28709954,90.246,90.15,16.02]
[1645208910382,111.6,90.244,90.15,16.02]
[1645208910583,5.543,90.243,90.15,16.02]
[1645208910782,16.6414,90.23,90.151,50.51016824]
[1645208910982,77.64746963,90.229,90.151,50.51016824]
[1645208912283,16.6426,90.22,90.15,16.02]
[1645208912483,16.6426,90.22,90.132,23.3377]
[1645208912484,117.143,90.219,90.132,23.3377]
[1645208913285,111.6,90.217,90.132,23.3377]
[1645208913487,16.6461,90.2,90.132,23.3377]
[1645208913686,28.6519,90.199,90.132,23.3377]
[1645208913984,28.6519,90.199,90.12,16.02]
[1645208914184,117.6,90.198,90.12,16.02]
[1645208914386,45.66288002,90.196,90.12,16.02]
[1645208914585,5.545,90.195,90.12,16.02]
[1645208915385,16.6478,90.19,90.12,16.02]
[1645208915587,5.546,90.189,90.12,16.02]
[1645208915989,23.9431,90.188,90.12,16.02]
[1645208916185,5.546,90.187,90.12,16.02]
[1645208916387,16.6499,90.18,90.12,16.02]
[1645208916587,46.85937854,90.179,90.12,16.02]
[1645208917791,46.85937854,90.179,90.121,2.6293831]
[1645208917988,6.0,90.178,90.121,2.6293831]
[1645208919189,5.546,90.177,90.121,2.6293831]
[1645208919689,6.0,90.178,90.121,114.2293831]
[1645208920091,6.0,90.178,90.122,2.6293831]
[1645208920292,6.0,90.178,90.123,53.40969391]
[1645208920692,29.0674,90.201,90.124,2.6293831]
[1645208920893,6.0,90.2,90.125,24.5078]
[1645208921094,5.545,90.199,90.125,24.5078]
[1645208921292,5.545,90.199,90.126,2.6293831]
[1645208921496,5.545,90.199,90.13,16.02]
[1645208921694,47.53549692,90.198,90.13,16.02]
[1645208921897,5.545,90.197,90.13,16.02]
[1645208925302,6.0,90.196,90.13,16.02]
[1645208925600,5.545,90.195,90.13,16.02]
[1645208926000,5.545,90.197,90.13,16.02]
[1645208926401,5.545,90.197,90.131,39.29961773]
[1645208926700,5.545,90.197,90.13,16.02]
[1645208927003,111.6,90.196,90.13,16.02]
[1645208927203,111.6,90.194,90.13,16.02]
[1645208927400,5.545,90.193,90.13,16.02]
[1645208927601,5.545,90.197,90.13,16.02]
[1645208928300,5.545,90.197,90.129,41.25627552]
[1645208928502,16.6475,90.19,90.129,41.25627552]
[1645208928701,5.545,90.189,90.129,41.25627552]
[1645208928901,5.545,90.189,90.11,16.02]
[1645208929102,24.5126,90.188,90.11,16.02]
[1645208929300,11.546,90.187,90.11,16.02]
[1645208929900,11.546,90.187,90.111,52.26664857]
[1645208930402,11.546,90.187,90.11,16.02]
[1645208931405,16.6496,90.18,90.11,16.02]
[1645208931602,56.40753887,90.179,90.11,16.02]
[1645208933302,6.0,90.178,90.11,16.02]
[1645208933505,28.113,90.177,90.11,16.02]
[1645208935805,28.113,90.177,90.111,44.83949774]
[1645208936003,28.113,90.177,90.11,16.02]
[1645208938403,22.567,90.177,90.11,16.02]
[1645208939606,22.567,90.177,90.111,2.6293831]
[1645208940206,6.0,90.176,90.11,16.02]
[1645208942609,6.0,90.176,90.111,111.6]
[1645208942809,50.86153887,90.179,90.111,111.6]
[1645208943110,50.86153887,90.179,90.112,2.6293831]
[1645208943814,50.86153887,90.179,90.116,111.6]
[1645208944011,50.86153887,90.179,90.13,16.02]
[1645208944311,50.86153887,90.179,90.14,16.02]
[1645208945712,50.86153887,90.179,90.119,24.9536]
[1645208945713,11.545,90.178,90.119,24.9536]
[1645208945915,11.545,90.178,90.12,16.02]
[1645208946314,11.545,90.178,90.1,16.02]
[1645208946513,16.6516,90.17,90.1,16.02]
[1645208946719,5.547,90.169,90.1,16.02]
[1645208947119,5.547,90.169,90.101,22.5732]
[1645208947318,5.547,90.169,90.07,16.6522]
[1645208947521,139.2242831,90.168,90.08,16.02]
[1645208947723,111.6,90.159,90.08,16.02]
[1645208947919,111.6,90.157,90.08,16.02]
[1645208948120,111.6,90.155,90.08,16.02]
[1645208948320,111.6,90.153,90.08,16.02]
[1645208948519,55.532,90.15,90.048,22.6208]
[1645208948721,16.6575,90.14,90.05,16.02]
[1645208948924,5.549,90.139,90.05,16.02]
[1645208949320,5.549,90.139,90.051,2.6293831]
[1645208949520,55.13995274,90.138,90.052,40.6502105]
[1645208949722,5.549,90.137,90.052,40.6502105]
[1645208950124,5.549,90.137,90.053,2.6293831]
[1645208950538,5.549,90.137,90.054,23.7578]
[1645208951138,5.549,90.137,90.055,6.0]
[1645208951338,5.549,90.137,90.06,16.02]
[1645208951542,5.549,90.137,90.061,6.0]
[1645208951742,23.4587,90.136,90.061,6.0]
[1645208951940,5.549,90.135,90.062,114.2293831]
[1645208952139,55.13995274,90.138,90.062,114.2293831]
[1645208952339,55.13995274,90.138,90.063,2.6293831]
[1645208953140,55.13995274,90.138,90.071,163.93643251]
[1645208953341,55.13995274,90.138,90.08,16.02]
[1645208953742,55.13995274,90.138,90.08,18.6493831]
[1645208953942,6.0,90.138,90.081,111.6]
[1645208954144,29.0077,90.157,90.083,111.6]
[1645208954343,23.4587,90.157,90.083,111.6]
[1645208954542,23.4587,90.157,90.084,2.6293831]
[1645208954743,23.4587,90.157,90.084,1.6293831]
[1645208954944,49.99013951,90.156,90.086,111.6]